[Event "Early-Titled-Tuesday-Blitz-September-05-2023"]
[Site "Chess.com"]
[Date "2023.09.05"]
[Round "1"]
[White "IngOscarArdila"]
[Black "DumbKing75"]
[Result "1-0"]
[WhiteElo "2387"]
[BlackElo "2654"]
[TimeControl "180+1"]
[EndTime "8:09:22 PDT"]
[Termination "IngOscarArdila won on time"]

1. d4 {[%clk 0:03:00]} 1... Nf6 {[%clk 0:02:56.8]} 2. c4 {[%clk 0:02:59.8]} 2...
g6 {[%clk 0:02:54.3]} 3. Nc3 {[%clk 0:02:59.6]} 3... Bg7 {[%clk 0:02:52.9]} 4.
Nf3 {[%clk 0:02:59.9]} 4... O-O {[%clk 0:02:53.1]} 5. e3 {[%clk 0:03:00.3]} 5...
d6 {[%clk 0:02:52.6]} 6. Be2 {[%clk 0:03:00.7]} 6... Nbd7 {[%clk 0:02:52.6]} 7.
O-O {[%clk 0:03:00.8]} 7... e5 {[%clk 0:02:53.2]} 8. dxe5 {[%clk 0:03:01.2]}
8... dxe5 {[%clk 0:02:54.1]} 9. Qc2 {[%clk 0:03:01.1]} 9... Re8 {[%clk
0:02:49.7]} 10. Rd1 {[%clk 0:03:00.9]} 10... c6 {[%clk 0:02:47]} 11. b3 {[%clk
0:03:00.5]} 11... Qc7 {[%clk 0:02:40.6]} 12. Ba3 {[%clk 0:02:59.2]} 12... Bf8
{[%clk 0:02:38]} 13. Bxf8 {[%clk 0:02:45.9]} 13... Kxf8 {[%clk 0:02:38.1]} 14.
b4 {[%clk 0:02:35.4]} 14... a5 {[%clk 0:02:16.4]} 15. a3 {[%clk 0:02:34.8]}
15... Kg7 {[%clk 0:02:14.9]} 16. c5 {[%clk 0:02:34]} 16... Nf8 {[%clk
0:02:08.9]} 17. h3 {[%clk 0:02:25.2]} 17... Bf5 {[%clk 0:01:24.7]} 18. Qb2
{[%clk 0:02:25]} 18... N6d7 {[%clk 0:01:08.6]} 19. g4 {[%clk 0:02:13.9]} 19...
Be6 {[%clk 0:01:08.8]} 20. Ne4 {[%clk 0:02:08.4]} 20... f6 {[%clk 0:00:58.6]}
21. Nd6 {[%clk 0:02:08.1]} 21... Reb8 {[%clk 0:00:58.7]} 22. g5 {[%clk
0:02:02.3]} 22... axb4 {[%clk 0:00:32.4]} 23. axb4 {[%clk 0:02:01.1]} 23... Rxa1
{[%clk 0:00:33.3]} 24. Rxa1 {[%clk 0:02:00.3]} 24... b6 {[%clk 0:00:33.9]} 25.
gxf6+ {[%clk 0:01:58.2]} 25... Kxf6 {[%clk 0:00:34.8]} 26. Qc3 {[%clk
0:01:48.7]} 26... bxc5 {[%clk 0:00:32.3]} 27. bxc5 {[%clk 0:01:48.4]} 27... Rb3
{[%clk 0:00:32.6]} 28. Qc2 {[%clk 0:01:42.3]} 28... Qb8 {[%clk 0:00:21.7]} 29.
Bc4 {[%clk 0:01:39.7]} 29... Bxc4 {[%clk 0:00:19.3]} 30. Qxc4 {[%clk 0:01:39.6]}
30... Ne6 {[%clk 0:00:13.2]} 31. Qh4+ {[%clk 0:01:35]} 31... g5 {[%clk
0:00:11.9]} 32. Qh6+ {[%clk 0:01:32.9]} 32... Ke7 {[%clk 0:00:12.1]} 33. Qxh7+
{[%clk 0:01:07.6]} 33... Kd8 {[%clk 0:00:12.7]} 34. Qh8+ {[%clk 0:01:01.8]}
34... Nef8 {[%clk 0:00:10.1]} 35. Nxg5 {[%clk 0:00:56.3]} 35... Rb1+ {[%clk
0:00:10]} 36. Rxb1 {[%clk 0:00:55.2]} 36... Qxb1+ {[%clk 0:00:10.9]} 37. Kh2
{[%clk 0:00:55.7]} 37... Qg6 {[%clk 0:00:11]} 38. Qh4 {[%clk 0:00:47.4]} 38...
Kc7 {[%clk 0:00:10.3]} 39. Qg3 {[%clk 0:00:44.3]} 39... Nxc5 {[%clk 0:00:07.1]}
40. Nc4 {[%clk 0:00:34.5]} 40... Nfd7 {[%clk 0:00:04.7]} 41. Nxe5 {[%clk
0:00:33.7]} 41... Nxe5 {[%clk 0:00:02.9]} 42. Qxe5+ {[%clk 0:00:33.7]} 42... Kb6
{[%clk 0:00:03.8]} 43. f4 {[%clk 0:00:31]} 43... Qc2+ {[%clk 0:00:03.3]} 44. Kg3
{[%clk 0:00:29.5]} 44... Qc1 {[%clk 0:00:03.9]} 45. Qd4 {[%clk 0:00:27.9]} 45...
Qg1+ {[%clk 0:00:03]} 46. Kh4 {[%clk 0:00:27.9]} 46... Qf2+ {[%clk 0:00:03.7]}
47. Kh5 {[%clk 0:00:27.9]} 47... Qc2 {[%clk 0:00:04]} 48. h4 {[%clk 0:00:25.1]}
48... Kb7 {[%clk 0:00:03.8]} 49. Qg7+ {[%clk 0:00:23.3]} 49... Kb6 {[%clk
0:00:03.9]} 50. Qh8 {[%clk 0:00:18.3]} 50... Qe2+ {[%clk 0:00:03.9]} 51. Kh6
{[%clk 0:00:17.9]} 51... Qxe3 {[%clk 0:00:04.5]} 52. Qf6 {[%clk 0:00:16.4]}
52... Nd7 {[%clk 0:00:03.5]} 53. Qd8+ {[%clk 0:00:16.2]} 53... Kb5 {[%clk
0:00:03.4]} 54. Qxd7 {[%clk 0:00:16.3]} 54... Qxf4 {[%clk 0:00:04.1]} 55. Kh5
{[%clk 0:00:13.7]} 55... Qe3 {[%clk 0:00:03.1]} 56. Qe6 {[%clk 0:00:12.9]} 56...
Qd4 {[%clk 0:00:01.4]} 57. Qe2+ {[%clk 0:00:12.7]} 57... Kb6 {[%clk 0:00:01.8]}
58. Qe6 {[%clk 0:00:12.4]} 58... Qh8+ {[%clk 0:00:02.2]} 59. Kg4 {[%clk
0:00:12.2]} 59... Qd4+ {[%clk 0:00:02.9]} 60. Qe4 {[%clk 0:00:12.3]} 60... Qg1+
{[%clk 0:00:02.8]} 61. Kf5 {[%clk 0:00:12.2]} 61... Qf1+ {[%clk 0:00:03]} 62.
Kg6 {[%clk 0:00:12.5]} 62... Qc1 {[%clk 0:00:03]} 63. Qd4+ {[%clk 0:00:12]}
63... c5 {[%clk 0:00:02.9]} 64. Qd6+ {[%clk 0:00:11.4]} 64... Kb5 {[%clk
0:00:03.7]} 65. h5 {[%clk 0:00:11.9]} 65... Qc2+ {[%clk 0:00:04.3]} 66. Kg7
{[%clk 0:00:12.2]} 66... Qb2+ {[%clk 0:00:04.1]} 67. Qf6 {[%clk 0:00:11.9]}
67... Qg2 {[%clk 0:00:02.6]} 68. h6 {[%clk 0:00:12]} 68... c4 {[%clk 0:00:02.9]}
69. h7 {[%clk 0:00:12.3]} 69... Qb7+ {[%clk 0:00:03.4]} 70. Nf7 {[%clk 0:00:12]}
70... Qg2+ {[%clk 0:00:03.1]} 71. Qg6 {[%clk 0:00:12.3]} 71... Qb2+ {[%clk
0:00:01.8]} 72. Qf6 {[%clk 0:00:12.7]} 72... c3 {[%clk 0:00:01.5]} 73. h8=Q
{[%clk 0:00:12.1]} 73... Qg2+ {[%clk 0:00:02.1]} 74. Ng5 {[%clk 0:00:11.3]}
74... c2 {[%clk 0:00:01.9]} 75. Qb8+ {[%clk 0:00:11.2]} 75... Kc4 {[%clk
0:00:02.3]} 76. Qc7+ {[%clk 0:00:10.6]} 76... Kd3 {[%clk 0:00:02.7]} 77. Qcd6+
{[%clk 0:00:10.2]} 77... Ke2 {[%clk 0:00:02.5]} 78. Qfe5+ {[%clk 0:00:10.5]}
78... Kf1 {[%clk 0:00:02.6]} 79. Qa6+ {[%clk 0:00:08.8]} 79... Kg1 {[%clk
0:00:02.5]} 80. Qc5+ {[%clk 0:00:08.4]} 80... Kh1 {[%clk 0:00:02.2]} 81. Qa1+
{[%clk 0:00:07.7]} 81... Kh2 {[%clk 0:00:02.3]} 82. Qc1 {[%clk 0:00:07.3]} 1-0

[Event "Early-Titled-Tuesday-Blitz-September-05-2023"]
[Site "Chess.com"]
[Date "2023.09.05"]
[Round "1"]
[White "LionTheLeon_06"]
[Black "Juicy_Fork"]
[Result "1-0"]
[WhiteElo "2810"]
[BlackElo "2445"]
[TimeControl "180+1"]
[EndTime "8:09:33 PDT"]
[Termination "LionTheLeon_06 won on time"]

1. e4 {[%clk 0:03:00.9]} 1... e5 {[%clk 0:02:57.8]} 2. Nf3 {[%clk 0:03:01.2]}
2... Nc6 {[%clk 0:02:58.3]} 3. Bc4 {[%clk 0:03:01.8]} 3... Nf6 {[%clk
0:02:58.1]} 4. d3 {[%clk 0:03:02.2]} 4... Bc5 {[%clk 0:02:57.9]} 5. c3 {[%clk
0:03:02.1]} 5... d6 {[%clk 0:02:57.8]} 6. Bg5 {[%clk 0:03:01.2]} 6... h6 {[%clk
0:02:57.2]} 7. Bh4 {[%clk 0:03:01.2]} 7... g5 {[%clk 0:02:56.3]} 8. Bg3 {[%clk
0:03:01.5]} 8... Nh5 {[%clk 0:02:30.5]} 9. d4 {[%clk 0:02:57.6]} 9... Nxg3
{[%clk 0:02:24.2]} 10. hxg3 {[%clk 0:02:56.7]} 10... exd4 {[%clk 0:02:20.9]} 11.
cxd4 {[%clk 0:02:56.6]} 11... Bb4+ {[%clk 0:02:21.2]} 12. Nc3 {[%clk 0:02:56.9]}
12... Bg4 {[%clk 0:02:20.1]} 13. Qb3 {[%clk 0:02:31.2]} 13... Bxf3 {[%clk
0:02:19.8]} 14. gxf3 {[%clk 0:02:27.8]} 14... Nxd4 {[%clk 0:02:17]} 15. Bxf7+
{[%clk 0:02:22.1]} 15... Kf8 {[%clk 0:02:12.7]} 16. Qd1 {[%clk 0:02:19]} 16...
Qf6 {[%clk 0:02:08.3]} 17. Bh5 {[%clk 0:02:14.1]} 17... Kg7 {[%clk 0:01:57.7]}
18. Kf1 {[%clk 0:02:14.1]} 18... c6 {[%clk 0:01:52.1]} 19. Kg2 {[%clk 0:02:12]}
19... Rhf8 {[%clk 0:01:50.4]} 20. Qd3 {[%clk 0:02:05]} 20... Rad8 {[%clk
0:01:43.7]} 21. Bg4 {[%clk 0:02:03.9]} 21... Ne6 {[%clk 0:01:31.5]} 22. Qc4
{[%clk 0:01:51.9]} 22... Bxc3 {[%clk 0:01:28.3]} 23. bxc3 {[%clk 0:01:52.8]}
23... Nc5 {[%clk 0:01:24.5]} 24. Rad1 {[%clk 0:01:52.7]} 24... Qe5 {[%clk
0:01:20.1]} 25. Rd4 {[%clk 0:01:47.7]} 25... Rf6 {[%clk 0:01:14.5]} 26. Bf5
{[%clk 0:01:35]} 26... b5 {[%clk 0:01:10.6]} 27. Qe2 {[%clk 0:01:12.3]} 27...
Rxf5 {[%clk 0:01:09.7]} 28. Qd2 {[%clk 0:00:59]} 28... Rf6 {[%clk 0:01:07.3]}
29. Re1 {[%clk 0:00:59.6]} 29... Rdf8 {[%clk 0:01:03.2]} 30. Re3 {[%clk
0:00:59.3]} 30... Ne6 {[%clk 0:00:57.8]} 31. Rdd3 {[%clk 0:00:53.8]} 31... Rg6
{[%clk 0:00:51.1]} 32. Kf1 {[%clk 0:00:52.2]} 32... Nc5 {[%clk 0:00:45.8]} 33.
Rd4 {[%clk 0:00:52.6]} 33... Rgf6 {[%clk 0:00:45.8]} 34. Kg2 {[%clk 0:00:52.8]}
34... g4 {[%clk 0:00:41.3]} 35. f4 {[%clk 0:00:50.9]} 35... Qh5 {[%clk 0:00:41]}
36. Rxd6 {[%clk 0:00:49.9]} 36... Ne6 {[%clk 0:00:19.6]} 37. Kg1 {[%clk
0:00:24.1]} 37... R8f7 {[%clk 0:00:16.2]} 38. e5 {[%clk 0:00:23.5]} 38... Rg6
{[%clk 0:00:14.6]} 39. Re4 {[%clk 0:00:17.1]} 39... Qf5 {[%clk 0:00:14.4]} 40.
Re1 {[%clk 0:00:13.4]} 40... h5 {[%clk 0:00:13.7]} 41. Qd3 {[%clk 0:00:07.4]}
41... Qxd3 {[%clk 0:00:07.1]} 42. Rxd3 {[%clk 0:00:08.3]} 42... Nc5 {[%clk
0:00:07.5]} 43. Rd8 {[%clk 0:00:08.4]} 43... Na4 {[%clk 0:00:07.1]} 44. Re3
{[%clk 0:00:07.2]} 44... Re7 {[%clk 0:00:05.4]} 45. f5 {[%clk 0:00:07.1]} 45...
Rh6 {[%clk 0:00:02.6]} 46. f6+ {[%clk 0:00:07.6]} 46... Rxf6 {[%clk 0:00:03]}
47. exf6+ {[%clk 0:00:08.5]} 47... Kxf6 {[%clk 0:00:03.7]} 48. Rd6+ {[%clk
0:00:09]} 48... Kf7 {[%clk 0:00:03.7]} 49. Rxe7+ {[%clk 0:00:09.7]} 49... Kxe7
{[%clk 0:00:04.6]} 50. Rxc6 {[%clk 0:00:10.6]} 50... Kd7 {[%clk 0:00:04.7]} 51.
Ra6 {[%clk 0:00:11.2]} 51... Nxc3 {[%clk 0:00:04.4]} 52. Rxa7+ {[%clk
0:00:11.9]} 52... Kc6 {[%clk 0:00:04.5]} 53. a3 {[%clk 0:00:11]} 53... Kb6
{[%clk 0:00:04.6]} 54. Ra8 {[%clk 0:00:11.1]} 54... Nb1 {[%clk 0:00:03.9]} 55.
Kf1 {[%clk 0:00:10.6]} 55... Kb7 {[%clk 0:00:04]} 56. Rh8 {[%clk 0:00:10.8]}
56... Nxa3 {[%clk 0:00:02.3]} 57. Rxh5 {[%clk 0:00:11]} 57... b4 {[%clk
0:00:02.2]} 58. Ke2 {[%clk 0:00:10.8]} 58... b3 {[%clk 0:00:01.9]} 59. Ke3
{[%clk 0:00:04.3]} 59... b2 {[%clk 0:00:02]} 60. Rh1 {[%clk 0:00:05.1]} 60...
b1=Q {[%clk 0:00:01.9]} 61. Rxb1+ {[%clk 0:00:05.8]} 61... Nxb1 {[%clk
0:00:02.6]} 62. Kf4 {[%clk 0:00:06.7]} 62... Kc7 {[%clk 0:00:03.5]} 63. Kxg4
{[%clk 0:00:07.6]} 63... Kd7 {[%clk 0:00:04.4]} 64. Kf4 {[%clk 0:00:08.5]} 64...
Ke7 {[%clk 0:00:05]} 65. g4 {[%clk 0:00:09.4]} 65... Kf7 {[%clk 0:00:05.9]} 66.
Kg5 {[%clk 0:00:10.3]} 66... Nc3 {[%clk 0:00:06.8]} 67. f4 {[%clk 0:00:11.2]}
67... Ne4+ {[%clk 0:00:07]} 68. Kf5 {[%clk 0:00:11.8]} 68... Ng3+ {[%clk
0:00:07.5]} 69. Ke5 {[%clk 0:00:12]} 69... Kg6 {[%clk 0:00:07.5]} 70. Ke6 {[%clk
0:00:11.6]} 70... Kg7 {[%clk 0:00:06.8]} 71. f5 {[%clk 0:00:11.5]} 71... Kf8
{[%clk 0:00:06.8]} 72. g5 {[%clk 0:00:11.5]} 72... Nh5 {[%clk 0:00:06.2]} 73. f6
{[%clk 0:00:11.2]} 73... Nf4+ {[%clk 0:00:03.5]} 74. Kf5 {[%clk 0:00:11.6]}
74... Ne2 {[%clk 0:00:04]} 75. g6 {[%clk 0:00:11.9]} 75... Nd4+ {[%clk
0:00:04.3]} 76. Ke5 {[%clk 0:00:12.2]} 76... Nf3+ {[%clk 0:00:04.4]} 77. Kf4
{[%clk 0:00:12.3]} 77... Nd4 {[%clk 0:00:03.1]} 78. Kg5 {[%clk 0:00:12.7]} 78...
Nf3+ {[%clk 0:00:02.9]} 79. Kh6 {[%clk 0:00:13]} 79... Kg8 {[%clk 0:00:02.9]}
80. Kh5 {[%clk 0:00:11.5]} 80... Ne5 {[%clk 0:00:02]} 81. Kg5 {[%clk 0:00:11.9]}
81... Nxg6 {[%clk 0:00:01.3]} 82. Kxg6 {[%clk 0:00:12.4]} 82... Kh8 {[%clk
0:00:02]} 83. Kf7 {[%clk 0:00:12.7]} 83... Kh7 {[%clk 0:00:02.4]} 84. Ke7 {[%clk
0:00:13.6]} 1-0

[Event "Early-Titled-Tuesday-Blitz-September-05-2023"]
[Site "Chess.com"]
[Date "2023.09.05"]
[Round "1"]
[White "karinachess1"]
[Black "AlexandraSamaganova"]
[Result "1-0"]
[WhiteElo "2610"]
[BlackElo "2278"]
[TimeControl "180+1"]
[EndTime "8:09:36 PDT"]
[Termination "karinachess1 won by resignation"]

1. c4 {[%clk 0:02:59.5]} 1... c5 {[%clk 0:02:59.9]} 2. Nf3 {[%clk 0:02:59.1]}
2... Nf6 {[%clk 0:02:59.4]} 3. Nc3 {[%clk 0:02:57.8]} 3... e6 {[%clk 0:02:59.1]}
4. d4 {[%clk 0:02:55.8]} 4... cxd4 {[%clk 0:02:58.5]} 5. Nxd4 {[%clk 0:02:56.7]}
5... a6 {[%clk 0:02:58.6]} 6. a3 {[%clk 0:02:55.5]} 6... Qc7 {[%clk 0:02:55.8]}
7. e4 {[%clk 0:02:54.7]} 7... b6 {[%clk 0:02:54.9]} 8. Be2 {[%clk 0:02:53.2]}
8... Bb7 {[%clk 0:02:54.8]} 9. f3 {[%clk 0:02:53.7]} 9... d6 {[%clk 0:02:53.7]}
10. Be3 {[%clk 0:02:53.6]} 10... Nbd7 {[%clk 0:02:53.9]} 11. O-O {[%clk
0:02:52.3]} 11... Be7 {[%clk 0:02:52.1]} 12. Rc1 {[%clk 0:02:52.2]} 12... O-O
{[%clk 0:02:47.2]} 13. Qd2 {[%clk 0:02:50.1]} 13... Rac8 {[%clk 0:02:42.4]} 14.
Rfd1 {[%clk 0:02:49.8]} 14... Qb8 {[%clk 0:02:41.4]} 15. Bf1 {[%clk 0:02:44.4]}
15... Bd8 {[%clk 0:02:37.8]} 16. Kh1 {[%clk 0:02:41.8]} 16... Bc7 {[%clk
0:02:37]} 17. Bg1 {[%clk 0:02:42]} 17... Rfe8 {[%clk 0:02:36.6]} 18. Nc2 {[%clk
0:02:20.2]} 18... d5 {[%clk 0:02:29.5]} 19. cxd5 {[%clk 0:01:55.1]} 19... exd5
{[%clk 0:02:26.7]} 20. Nxd5 {[%clk 0:00:56.2]} 20... Nxd5 {[%clk 0:01:54.2]} 21.
exd5 {[%clk 0:00:56.4]} 21... Bf4 {[%clk 0:01:54.2]} 22. Ne3 {[%clk 0:00:56.7]}
22... Rxc1 {[%clk 0:01:34.6]} 23. Rxc1 {[%clk 0:00:57.6]} 23... Qe5 {[%clk
0:01:32.4]} 24. Rc3 {[%clk 0:00:56.8]} 24... Qh5 {[%clk 0:01:24.6]} 25. Qf2
{[%clk 0:00:46.4]} 25... Nf6 {[%clk 0:01:01.5]} 26. g3 {[%clk 0:00:41.6]} 26...
Bxe3 {[%clk 0:00:27.4]} 27. Rxe3 {[%clk 0:00:42.5]} 27... Rxe3 {[%clk
0:00:27.6]} 28. Qxe3 {[%clk 0:00:43.2]} 28... Qxd5 {[%clk 0:00:19.4]} 29. Bg2
{[%clk 0:00:39.6]} 29... b5 {[%clk 0:00:19]} 30. h3 {[%clk 0:00:33.3]} 30... h6
{[%clk 0:00:18.2]} 31. Kh2 {[%clk 0:00:33.6]} 31... Qd6 {[%clk 0:00:12.1]} 32.
Bf2 {[%clk 0:00:31.8]} 32... Bd5 {[%clk 0:00:08.3]} 33. Qd4 {[%clk 0:00:25.3]}
33... Qc6 {[%clk 0:00:07.6]} 34. Qe3 {[%clk 0:00:20.6]} 34... Qd6 {[%clk
0:00:06.3]} 35. Be1 {[%clk 0:00:20.3]} 35... Qc7 {[%clk 0:00:04.3]} 36. Bc3
{[%clk 0:00:18.9]} 36... Nh5 {[%clk 0:00:03.4]} 37. Be5 {[%clk 0:00:19.2]} 37...
Qd7 {[%clk 0:00:02.9]} 38. g4 {[%clk 0:00:19.5]} 38... Nf6 {[%clk 0:00:01.3]}
39. Bxf6 {[%clk 0:00:19.4]} 39... gxf6 {[%clk 0:00:02.2]} 40. Qxh6 {[%clk
0:00:19.5]} 40... Qd6+ {[%clk 0:00:02.7]} 41. Kh1 {[%clk 0:00:17.6]} 41... Qe5
{[%clk 0:00:02.9]} 42. Qd2 {[%clk 0:00:17.3]} 42... Qd6 {[%clk 0:00:02.5]} 43.
Kg1 {[%clk 0:00:13.5]} 43... Qe5 {[%clk 0:00:02.6]} 44. f4 {[%clk 0:00:12.7]}
44... Qe6 {[%clk 0:00:02.1]} 45. Qxd5 {[%clk 0:00:12.2]} 45... Qe3+ {[%clk
0:00:01.8]} 46. Kh1 {[%clk 0:00:11.8]} 46... Qc1+ {[%clk 0:00:02.2]} 47. Kh2
{[%clk 0:00:10.3]} 47... Qxf4+ {[%clk 0:00:02.9]} 48. Kg1 {[%clk 0:00:10.7]}
48... Qc1+ {[%clk 0:00:03.6]} 49. Kf2 {[%clk 0:00:11.3]} 49... Qxb2+ {[%clk
0:00:04.2]} 50. Kf1 {[%clk 0:00:10.9]} 50... Qa1+ {[%clk 0:00:04.4]} 51. Ke2
{[%clk 0:00:10.4]} 51... Qb2+ {[%clk 0:00:05.1]} 52. Qd2 {[%clk 0:00:10.6]}
52... Qxa3 {[%clk 0:00:05.6]} 53. Qd8+ {[%clk 0:00:09.9]} 53... Kg7 {[%clk
0:00:05.7]} 54. Qd3 {[%clk 0:00:09.7]} 54... Qb2+ {[%clk 0:00:05.9]} 55. Kf3
{[%clk 0:00:10]} 55... b4 {[%clk 0:00:05.8]} 56. Qxa6 {[%clk 0:00:08.2]} 56...
Qc3+ {[%clk 0:00:06]} 57. Kf2 {[%clk 0:00:08.5]} 57... b3 {[%clk 0:00:06.5]} 58.
Qb7 {[%clk 0:00:06.7]} 58... Qc2+ {[%clk 0:00:06]} 59. Kf1 {[%clk 0:00:07]}
59... b2 {[%clk 0:00:06.3]} 60. Be4 {[%clk 0:00:07.6]} 60... b1=Q+ {[%clk
0:00:06.3]} 61. Qxb1 {[%clk 0:00:07.3]} 61... Qc4+ {[%clk 0:00:06.9]} 62. Kf2
{[%clk 0:00:07.5]} 62... Qd4+ {[%clk 0:00:07.4]} 63. Kf3 {[%clk 0:00:07.8]}
63... Qc3+ {[%clk 0:00:07.7]} 64. Qd3 {[%clk 0:00:08.4]} 64... Qe1 {[%clk
0:00:07.7]} 65. Qe2 {[%clk 0:00:07.7]} 65... Qh1+ {[%clk 0:00:07.6]} 66. Qg2
{[%clk 0:00:08.2]} 66... Qd1+ {[%clk 0:00:07.7]} 67. Kg3 {[%clk 0:00:07.1]}
67... Qb3+ {[%clk 0:00:07.2]} 68. Kh2 {[%clk 0:00:07.6]} 68... Qc4 {[%clk
0:00:06.3]} 69. h4 {[%clk 0:00:06.7]} 69... Qc7+ {[%clk 0:00:06]} 70. Kh3 {[%clk
0:00:07.3]} 70... Qf4 {[%clk 0:00:06]} 71. Bf3 {[%clk 0:00:07.8]} 71... Qe3
{[%clk 0:00:06.1]} 72. g5 {[%clk 0:00:07.3]} 72... f5 {[%clk 0:00:05.5]} 73. h5
{[%clk 0:00:06.9]} 73... Qf4 {[%clk 0:00:05.2]} 74. Qg3 {[%clk 0:00:06.8]} 74...
Qc1 {[%clk 0:00:04.8]} 75. Kh2 {[%clk 0:00:07]} 75... Qd2+ {[%clk 0:00:04.1]}
76. Bg2 {[%clk 0:00:07.3]} 76... Qd4 {[%clk 0:00:03.7]} 77. h6+ {[%clk
0:00:07.1]} 77... Kg6 {[%clk 0:00:03.6]} 78. Qh3 {[%clk 0:00:05.1]} 78... f4
{[%clk 0:00:03.3]} 79. h7 {[%clk 0:00:05.2]} 79... Qh8 {[%clk 0:00:02.2]} 80.
Qh6+ {[%clk 0:00:05.1]} 80... Kf5 {[%clk 0:00:01.9]} 81. Bh3+ {[%clk 0:00:05.8]}
81... Ke4 {[%clk 0:00:02]} 82. g6 {[%clk 0:00:05.3]} 82... f3 {[%clk 0:00:02]}
83. g7 {[%clk 0:00:05]} 83... Qb8+ {[%clk 0:00:02.7]} 84. Kh1 {[%clk 0:00:04.6]}
84... Qb1+ {[%clk 0:00:03.1]} 85. Kh2 {[%clk 0:00:04.5]} 85... Qc2+ {[%clk
0:00:03.6]} 86. Kg3 {[%clk 0:00:04.9]} 86... Qc7+ {[%clk 0:00:03.2]} 87. Kh4
{[%clk 0:00:05.1]} 87... Qe7+ {[%clk 0:00:02.7]} 88. Qg5 {[%clk 0:00:05.3]}
88... Qxg5+ {[%clk 0:00:01.6]} 89. Kxg5 {[%clk 0:00:06.2]} 89... f2 {[%clk
0:00:02.5]} 90. g8=Q {[%clk 0:00:06.1]} 90... f1=Q {[%clk 0:00:03.4]} 91. Bxf1
{[%clk 0:00:06.5]} 91... Ke3 {[%clk 0:00:02.9]} 92. h8=Q {[%clk 0:00:07.1]}
92... Kd2 {[%clk 0:00:03.8]} 93. Qf6 {[%clk 0:00:07.7]} 93... Ke1 {[%clk
0:00:04.7]} 94. Qe8+ {[%clk 0:00:07.9]} 1-0